[Event "FIDE WY-U16 Olympiad 2022"]
[Site "Nakhchivan"]
[Date "2022.10.02"]
[Round "1.21"]
[White "Anand, Batsukh"]
[Black "Baghirov, Orkhan"]
[Result "1-0"]
[ECO "D30"]
[WhiteElo "2201"]
[BlackElo "1662"]
[Annotator "TA"]
[PlyCount "137"]
[EventDate "2022.10.02"]
[EventType "team-tourn"]
[EventCountry "AZE"]
[SourceTitle "playchess.com"]
[Source "ChessBase"]
[SourceQuality "1"]
[WhiteTeam "Mongolia"]
[BlackTeam "Azerbaijan"]
[WhiteTeamCountry "MGL"]
[BlackTeamCountry "AZE"]
[TimeControl "40/5400+30:1800+30"]

{[%evp 9,137,1,0,0,0,3,5,0,0,-10,-8,-78,-85,-78,-88,-115,-108,-116,-43,-58,-18,-41,191,193,204,177,179,141,141,144,145,147,141,145,139,117,137,102,102,100,161,154,156,147,143,14,14,12,105,120,183,183,183,183,212,172,201,198,241,119,116,114,196,191,209,173,183,181,159,172,181,184,214,222,178,129,151,130,275,250,223,234,285,214,295,233,249,253,243,166,542,575,568,566,497,533,494,88,84,88,1022,1028,1523,3890,2188,1350,29961,29963,29973,29975,29977,29978,29978,29979,29981,29982,29982,29983,29983,29984,29987,29980,29982,29983,29983,29983,29983,29984,29984,29985]} 1. d4 {[%emt 0:00:09]} d5 {[%emt 0:00:05]} 2. c4 {[%emt 0:00:08]} e6 {[%emt 0:00:12]} 3. Nf3 {[%emt 0:00:06]} a6 {[%emt 0:00:31]} 4. g3 {[%emt 0:00:52]} dxc4 {[%emt 0:00:49]} 5. Bg2 {[%emt 0:00:09]} b5 {[%emt 0:00:08][%cal Bb7b5,Bb5b4][%mdl 32]} 6. Ne5 {[%emt 0:01:03] D30: Queen's Gambit Declined: Systems without Nc3.} c6 {[%emt 0:00:21]} 7. O-O {[%emt 0:00:13]} Bb7 {[%emt 0:01:27]} 8. a4 {[%emt 0:08:23] The position is equal.} Nf6 {[%emt 0:06:04]} 9. Nc3 {[%emt 0:00:43]} Be7 {[%emt 0:18:49] [#]} 10. b3 $146 {[%emt 0:17:38]} (10. axb5 $11 axb5 11. Rxa8 Bxa8 12. Nxb5) ({Predecessor:} 10. axb5 axb5 11. Rxa8 Bxa8 12. Nxb5 cxb5 13. Bxa8 O-O 14. Bg2 Nd5 15. e4 Nb4 16. d5 exd5 17. exd5 {1-0 (56) Abasov,N (2632)-Grandelius,N (2691) chess24.com INT 2020}) 10... b4 $17 {[%emt 0:08:04]} 11. Ne4 {[%emt 0:00:12]} Nxe4 {[%emt 0:05:34]} 12. Bxe4 {[%emt 0:00:07]} c3 {[%emt 0:00:01]} 13. Qd3 {[%emt 0:00:10]} h6 {[%emt 0:22:06]} (13... a5 $17 14. Rd1 f5) 14. a5 $15 {[%emt 0:00:39]} O-O {[%emt 0:01:24]} (14... Nd7 $5 {[%cal Rd7e5]} 15. Nxc6 Qc8 16. Nxe7 Bxe4 17. Qxe4 Kxe7 $11) 15. Bf4 {[%emt 0:01:33]} Bg5 $2 {[%emt 0:09:27]} (15... Nd7 $15 {stays ahead.} 16. Nxc6 Bxc6 17. Bxc6 Ra7) 16. Bxg5 $1 $18 {[%emt 0:00:25]} Qxg5 {[%emt 0:00:12]} 17. Qc4 {[%emt 0:00:55]} Qe7 {[%emt 0:00:08]} 18. Qc5 {[%emt 0:04:39] Against Ra7} Qxc5 {[%emt 0:04:24]} 19. dxc5 {[%emt 0:00:08]} f6 {[%emt 0:00:07]} 20. Nd3 {[%emt 0:00:05] White is much more active.} (20. Ng6 Rd8 21. Bc2 Rd2 $11) 20... Nd7 {[%emt 0:00:04]} 21. Ra4 $1 {[%emt 0:01:59]} Rab8 {[%emt 0:02:47]} (21... f5 22. Bg2 $14) 22. Rxb4 {[%emt 0:00:51]} Ba8 {[%emt 0:00:36]} 23. Rxb8 {[%emt 0:00:23]} Rxb8 {[%emt 0:00:04]} 24. b4 {[%emt 0:00:07]} f5 {[%emt 0:00:25]} (24... Ne5 $16 {was necessary.}) 25. Bg2 {[%emt 0:04:01]} e5 {[%emt 0:01:59]} 26. f3 {[%emt 0:04:54] Prevents e4.} Nf6 {[%emt 0:05:09]} 27. e4 {[%emt 0:01:20]} (27. Nxe5 $16 {Hoping for Rc1.} Rxb4 28. Rc1) 27... Rd8 $1 $11 {[%emt 0:02:00]} 28. Nf2 {[%emt 0:01:38]} (28. Nxe5 $2 c2 29. Kf2 Rd2+ 30. Ke3 Rxg2 $19) 28... c2 {[%emt 0:07:26]} (28... fxe4 $11 29. fxe4 (29. Nxe4 Nxe4 30. fxe4 c2 $11) 29... Rd4) 29. Rc1 $1 $16 {[%emt 0:02:21]} Rd2 {[%emt 0:00:10]} (29... fxe4 $16 30. fxe4 (30. Rxc2 e3 $14) 30... Bb7) 30. Bf1 $18 {[%emt 0:00:16]} fxe4 {[%emt 0:02:25]} 31. fxe4 {[%emt 0:00:37]} Rd4 {[%emt 0:01:31]} 32. Rxc2 {[%emt 0:00:15]} Rxb4 {[%emt 0:00:49]} 33. Bxa6 {[%emt 0:00:10]} Kf8 {[%emt 0:01:09]} 34. Bd3 {[%emt 0:00:48]} (34. Nd3 $18 {has better winning chances.} Ra4 35. Rb2 (35. Nxe5 Rxa5 36. Bd3 Ra3 $16)) 34... Ke7 $16 {[%emt 0:00:30]} 35. a6 {[%emt 0:00:23]} h5 {[%emt 0:00:12]} (35... Nd7 $16) 36. Kg2 {[%emt 0:00:33]} Kd8 {[%emt 0:00:42]} 37. Kf3 {[%emt 0:01:30]} Nd7 {[%emt 0:00:30]} 38. Be2 {[%emt 0:09:32]} Ra4 {[%emt 0:00:32]} 39. Ke3 {[%emt 0:00:07]} Kc7 {[%emt 0:00:30]} 40. Rc3 {[%emt 0:01:39]} ({Much less strong is} 40. Bxh5 Rxa6 41. Rc3 Ra4) 40... g6 {[%emt 0:00:34]} 41. Nd3 {[%emt 0:31:23]} Nf6 {[%emt 0:30:25]} 42. Bf3 {[%emt 0:00:22]} (42. Rc1 $18) 42... Nd7 {[%emt 0:00:08]} 43. g4 {[%emt 0:00:52]} hxg4 {[%emt 0:00:27]} (43... Rxa6 $16 44. gxh5 gxh5 45. Bxh5 Ra2) 44. Bxg4 $18 {[%emt 0:00:05]} Nf6 {[%emt 0:00:05]} 45. Bf3 {[%emt 0:00:07]} Nd7 {[%emt 0:00:00]} 46. h3 {[%emt 0:00:00]} Kd8 {[%emt 0:00:00]} 47. Be2 {[%emt 0:00:00]} ({Don't play} 47. Bg4 Nf6 48. Bf3 Nd7 $18) 47... Nf6 {[%emt 0:00:00] [#]} 48. Nf2 {[%emt 0:00:00]} Kc7 {[%emt 0:00:00]} 49. Bc4 {[%emt 0:00:00]} Rb4 $2 {[%emt 0:00:00]} (49... Nd5+ {is a better chance.} 50. exd5 cxd5) 50. Nd3 {[%emt 0:00:00][%csl LRb4,LRe5]} Ra4 {[%emt 0:00:00]} 51. Nxe5 {[%emt 0:00:00]} Nd5+ {[%emt 0:00:00]} 52. exd5 {[%emt 0:00:00]} cxd5 {[%emt 0:00:00]} 53. Rd3 $2 {[%emt 0:00:00]} dxc4 $16 {[%emt 0:00:00][%mdl 4096] Endgame KRB-KRN} 54. Rd7+ {[%emt 0:00:00]} Kb8 $2 {[%emt 0:01:17][%mdl 8192]} (54... Kc8 $16) 55. a7+ $18 {[%emt 0:00:00]} Rxa7 {[%emt 0:01:57]} 56. Rxa7 {[%emt 0:00:00]} Kxa7 {[%emt 0:00:01] KB-KN} 57. Kd4 {[%emt 0:00:00]} g5 {[%emt 0:01:59] [#]} 58. Nf7 $1 {[%emt 0:00:00] White mates.} Bg2 {[%emt 0:01:20]} 59. Nxg5 {[%emt 0:00:00]} Bd5 {[%emt 0:00:07]} 60. h4 {[%emt 0:00:00][%cal Bh3h4,Bh4h5,Bh5h6][%mdl 32]} ({Don't blunder} 60. Kxd5 $2 c3 61. Ke5 c2 $19) 60... Bg8 {[%emt 0:00:49]} 61. h5 {[%emt 0:00:00]} Kb7 {[%emt 0:00:53]} 62. h6 {[%emt 0:00:00]} Kc6 {[%emt 0:00:33]} 63. Ne4 {[%emt 0:00:00]} Bh7 {[%emt 0:01:02]} 64. Nf6 {[%emt 0:00:00]} Bd3 {[%emt 0:00:58]} 65. Ng4 {[%emt 0:00:00]} Kb5 {[%emt 0:00:26]} 66. Ne5 {[%emt 0:00:00]} Bh7 {[%emt 0:00:22]} 67. Nxc4 {[%emt 0:00:00]} Kc6 {[%emt 0:00:12]} 68. Ne5+ {[%emt 0:00:00]} Kc7 {[%emt 0:00:01]} 69. Ng4 {[%emt 0:00:00] Weighted Error Value: White=0.30/Black=0.40} 1-0

[Event "FIDE WY-U16 Olympiad 2022"]
[Site "Nakhchivan"]
[Date "2022.10.02"]
[Round "1.21"]
[White "Davudov, Tunar"]
[Black "Sapenov, Daniyal"]
[Result "0-1"]
[ECO "C78"]
[WhiteElo "1868"]
[BlackElo "2276"]
[Annotator "TA"]
[PlyCount "94"]
[EventDate "2022.10.02"]
[EventType "team-tourn"]
[EventCountry "AZE"]
[SourceTitle "playchess.com"]
[Source "ChessBase"]
[SourceQuality "1"]
[WhiteTeam "Azerbaijan"]
[BlackTeam "Kazakhstan"]
[WhiteTeamCountry "AZE"]
[BlackTeamCountry "KAZ"]
[TimeControl "40/5400+30:1800+30"]

{[%evp 17,94,0,0,0,9,17,28,24,29,-10,-5,0,-7,-19,0,-13,-9,-8,0,0,0,0,0,0,-9,-26,-22,-36,-21,-17,-7,-33,-29,-64,0,-1,-2,-75,-30,-95,-91,-89,-79,-113,-114,-143,-103,-104,-92,-96,-88,-697,-697,-694,-694,-672,-636,-668,-636,-647,-428,-455,-454,-448,-421,-508,-411,-685,-651,-854,-854,-807,-793,-846,-829,-1293,-1262,-1010,-964]} 1. e4 {[%emt 0:00:02]} e5 {[%emt 0:00:13]} 2. Nf3 {[%emt 0:00:09]} Nc6 {[%emt 0:00:15]} 3. Bb5 {[%emt 0:00:09]} a6 {[%emt 0:00:12]} 4. Ba4 {[%emt 0:00:08]} Nf6 {[%emt 0:00:16]} 5. O-O {[%emt 0:00:40]} b5 {[%emt 0:00:11]} 6. Bb3 {[%emt 0:00:07]} Bc5 {[%emt 0:00:05]} 7. c3 {[%emt 0:00:41]} d6 {[%emt 0:00:08]} 8. h3 {[%emt 0:05:30]} O-O {[%emt 0:10:25]} 9. d4 {[%emt 0:13:48]} Bb6 {[%emt 0:00:14]} 10. Re1 {[%emt 0:00:26] C78: Ruy Lopez: Archangelsk and Möller Defences.} h6 {[%emt 0:13:20]} 11. Be3 {[%emt 0:10:55]} Rb8 {[%emt 0:02:52]} (11... Nxe4 $2 12. Bd5 Bb7 13. Bxe4 $18) 12. Nbd2 {[%emt 0:03:15] White has an edge.} Re8 {[%emt 0:03:40]} 13. dxe5 {[%emt 0:01:53] [#]} Nxe5 $146 {[%emt 0:01:41]} ({Predecessor:} 13... Bxe3 14. exf6 Bxd2 15. Qxd2 Qxf6 16. Re3 Be6 17. Bxe6 Qxe6 18. Nd4 Nxd4 19. cxd4 c5 {½-½ (49) Klimkowski,J (2348)-Moroni,L (2575) Warsaw 2021}) 14. Nxe5 {[%emt 0:01:39]} dxe5 {[%emt 0:06:08]} 15. Qe2 {[%emt 0:02:49]} Qe7 {[%emt 0:05:33]} 16. Nf3 {[%emt 0:06:51]} Bxe3 {[%emt 0:07:50]} 17. Qxe3 {[%emt 0:00:09]} Nh5 {[%emt 0:00:11][%cal Bf6h5,Bh5f4,Bf4e6,Be6c5][%mdl 32]} 18. Rad1 {[%emt 0:09:19][%cal Of3e5]} Nf4 {[%emt 0:01:54]} 19. Kh2 {[%emt 0:10:06]} Rb6 {[%emt 0:04:05]} 20. Ng1 {[%emt 0:04:59]} a5 {[%emt 0:17:26]} 21. g3 {[%emt 0:05:12]} (21. a3 {with more complications.} a4 22. Ba2 Rf6 23. g3) 21... Ne6 {[%emt 0:00:42]} 22. Rd2 {[%emt 0:02:38]} Nc5 {[%emt 0:01:12]} 23. Bc2 {[%emt 0:01:01]} Bb7 {[%emt 0:02:42]} 24. Red1 {[%emt 0:02:37]} b4 {[%emt 0:01:15]} 25. Nf3 {[%emt 0:01:39]} Kh7 {[%emt 0:02:11]} (25... bxc3 $15 26. bxc3 Bc6) 26. Nh4 {[%emt 0:11:02]} g6 {[%emt 0:00:39]} 27. Nf3 {[%emt 0:00:13]} (27. f3 $11) 27... Kg7 {[%emt 0:02:19]} 28. Kg2 {[%emt 0:01:24]} (28. Re2 $11) 28... bxc3 $17 {[%emt 0:01:49]} 29. bxc3 {[%emt 0:00:08]} Bc6 {[%emt 0:00:11]} 30. Re1 {[%emt 0:02:12]} Reb8 {[%emt 0:02:16]} 31. c4 {[%emt 0:00:57]} Re8 {[%emt 0:02:18]} 32. Qc3 {[%emt 0:01:08]} a4 {[%emt 0:00:50]} 33. h4 {[%emt 0:00:21][%cal Oh4h5]} h5 {[%emt 0:02:05]} 34. Bb1 $2 {[%emt 0:02:39][%mdl 8192] [#] This move loses the game for White.} (34. Rde2 $17) 34... Rxb1 $1 $19 {[%emt 0:00:55][%mdl 512]} 35. Rxb1 {[%emt 0:00:37]} Nxe4 {[%emt 0:00:06]} 36. Qe3 {[%emt 0:00:30]} Nxd2 {[%emt 0:00:38]} 37. Qxd2 {[%emt 0:00:04]} Qf6 {[%emt 0:01:00]} 38. Qc3 {[%emt 0:00:45]} Rd8 {[%emt 0:01:44][%cal Be8d8,Bd8d4,Bd4d2,Bd2a2,Ba2a1,Ba1f1][%mdl 32]} 39. Re1 {[%emt 0:00:45] Inhibits Be4.} e4 {[%emt 0:01:42]} 40. Qxf6+ {[%emt 0:00:10]} Kxf6 {[%emt 0:00:04][%mdl 4096] Endgame KRB-KRN} 41. Ng5 {[%emt 0:30:25]} Rd4 {[%emt 0:33:47]} 42. Rc1 {[%emt 0:00:50]} (42. Re3 $142) 42... Rd2 {[%emt 0:00:46] And now ...e3+ would win. Black is clearly winning.} 43. Kf1 {[%emt 0:00:31]} Rxa2 {[%emt 0:00:17]} 44. Rc3 {[%emt 0:00:34]} a3 {[%emt 0:01:06][%cal Ba4a3,Ba3a2][%mdl 32]} 45. Ke1 {[%emt 0:00:24]} Ra1+ {[%emt 0:00:28]} 46. Kd2 {[%emt 0:00:17]} a2 {[%emt 0:00:10][%cal Oa1d1] Hoping for ...Rd1+!} 47. Ra3 {[%emt 0:00:36]} Rf1 {[%emt 0:00:08] Weighted Error Value: White=0.55/Black=0.17 (very precise)} 0-1

[Event "FIDE WY-U16 Olympiad 2022"]
[Site "Nakhchivan"]
[Date "2022.10.02"]
[Round "1.22"]
[White "Kairbekova, Amina"]
[Black "Israilov, Agil"]
[Result "0-1"]
[ECO "B43"]
[WhiteElo "2305"]
[BlackElo "1883"]
[Annotator "TA"]
[PlyCount "68"]
[EventDate "2022.10.02"]
[EventType "team-tourn"]
[EventCountry "AZE"]
[SourceTitle "playchess.com"]
[Source "ChessBase"]
[SourceQuality "1"]
[WhiteTeam "Kazakhstan"]
[BlackTeam "Azerbaijan"]
[WhiteTeamCountry "KAZ"]
[BlackTeamCountry "AZE"]
[TimeControl "40/5400+30:1800+30"]

{[%evp 14,68,-7,-19,-18,-26,-18,-18,-17,-20,-22,-19,-22,-17,-16,-18,-7,-60,-57,-60,-40,-97,-70,-187,-183,-359,-350,-499,-471,-440,-427,-363,-262,-280,-184,-362,-347,-347,-345,-419,-398,-472,-413,-386,-409,-745,-763,-1152,-1129,-1141,-1138,-1118,-1118,-1050,-1047,-969,-954]} 1. e4 {[%emt 0:00:04]} c5 {[%emt 0:00:35]} 2. Nf3 {[%emt 0:00:04]} e6 {[%emt 0:00:11]} 3. d4 {[%emt 0:00:08]} cxd4 {[%emt 0:00:08]} 4. Nxd4 {[%emt 0:00:02]} a6 {[%emt 0:00:36]} 5. Nc3 {[%emt 0:00:16]} b5 {[%emt 0:00:13]} 6. a3 {[%emt 0:01:47]} Bb7 {[%emt 0:00:10]} 7. Be3 {[%emt 0:03:32]} Qc7 $1 {[%emt 0:01:20] 7...Qc7 scores better than 7...d6.} 8. Be2 {[%emt 0:06:17]} Nf6 {[%emt 0:01:05] B43: Sicilian: Kan Variation: 5 Nc3.} 9. f3 {[%emt 0:02:21]} Be7 {[%emt 0:04:48]} 10. O-O {[%emt 0:10:46]} O-O {[%emt 0:01:26] The position is equal.} 11. Qe1 {[%emt 0:01:27]} d5 {[%emt 0:02:51]} 12. exd5 {[%emt 0:02:10]} Nxd5 {[%emt 0:00:23]} 13. Nxd5 {[%emt 0:00:06]} Bxd5 {[%emt 0:00:08] [#]} 14. a4 $146 {[%emt 0:01:21]} ({Predecessor:} 14. Bd3 Nd7 15. Qe2 Nc5 16. c4 bxc4 17. Bxc4 Bxc4 18. Qxc4 Bd6 19. f4 Qb7 20. b4 {1-0 (51) Fazekas,M (1804)-Losonczi,M (1924) Balatonlelle 2016}) 14... b4 {[%emt 0:09:10]} 15. Qg3 {[%emt 0:06:52]} (15. c4 $11 Bb7 16. Qg3) 15... Bd6 $1 $15 {[%emt 0:06:01][%cal Be7d6,Bd6h2,Bh2e5,Be5b2][%mdl 32]} 16. Qh4 {[%emt 0:02:30]} Nd7 {[%emt 0:01:39][%cal Bb8d7,Bd7e5,Be5g6][%mdl 32]} 17. Bd3 {[%emt 0:00:19]} (17. Rad1 $15) 17... f5 $17 {[%emt 0:01:21] Black converts the advantage convincingly.} 18. Nb3 {[%emt 0:07:59]} (18. Ne2 $15) 18... Ne5 $19 {[%emt 0:02:24]} 19. Rac1 $2 {[%emt 0:10:10] [#]} (19. Nc1) 19... Ng6 $1 {[%emt 0:08:16]} 20. Qd4 {[%emt 0:06:21]} (20. Qh3 $142 Bf4 21. Rce1) 20... Bxh2+ {[%emt 0:01:17]} 21. Kh1 {[%emt 0:00:04]} Be5 {[%emt 0:02:17]} 22. Qxb4 {[%emt 0:02:32]} Rab8 {[%emt 0:00:46][%cal Ba8b8,Bb8b4,Bb4h4][%mdl 32]} ({But not} 22... Bxb2 $2 23. Rcd1 $19) 23. Qd2 {[%emt 0:02:56]} Bxb2 {[%emt 0:03:48]} 24. Rb1 $2 {[%emt 0:00:06]} (24. Nc5 Bxc1 25. Rxc1) 24... Bc3 {[%emt 0:00:32]} 25. Qf2 {[%emt 0:00:23]} Rb4 {[%emt 0:07:28] [#] And now ...Rh4+ would win.} 26. Kg1 {[%emt 0:08:29]} Be5 {[%emt 0:05:36] aiming for ...Bh2+.} ({Avoid the trap} 26... Rh4 $2 27. Rfc1 $19) 27. Rfc1 {[%emt 0:03:17]} Bh2+ {[%emt 0:08:41]} 28. Kf1 {[%emt 0:00:05]} Bg3 {[%emt 0:00:13]} 29. Qd2 {[%emt 0:02:54]} (29. Qg1 $142 Nf4 30. Ra1) 29... Rh4 {[%emt 0:02:29] Black is clearly winning.} 30. Nd4 {[%emt 0:06:29]} Rh1+ {[%emt 0:00:56]} 31. Ke2 {[%emt 0:01:04]} Nf4+ {[%emt 0:00:22]} 32. Bxf4 {[%emt 0:03:06]} Bxf4 {[%emt 0:00:11]} 33. Rxh1 {[%emt 0:06:07]} Bxd2 {[%emt 0:00:18]} 34. Kxd2 {[%emt 0:02:18]} Qf4+ {[%emt 0:00:11] Weighted Error Value: White=0.73/Black=0.14 (very precise)} 0-1

[Event "FIDE WY-U16 Olympiad 2022"]
[Site "Nakhchivan"]
[Date "2022.10.02"]
[Round "1.22"]
[White "Isfandiyarli, Kamal"]
[Black "Tenuunbold, Battulga"]
[Result "0-1"]
[ECO "D12"]
[WhiteElo "1585"]
[BlackElo "2178"]
[Annotator "TA"]
[PlyCount "74"]
[EventDate "2022.10.02"]
[EventType "team-tourn"]
[EventCountry "AZE"]
[SourceTitle "playchess.com"]
[Source "ChessBase"]
[SourceQuality "1"]
[WhiteTeam "Azerbaijan"]
[BlackTeam "Mongolia"]
[WhiteTeamCountry "AZE"]
[BlackTeamCountry "MGL"]
[TimeControl "40/5400+30:1800+30"]

{[%evp 9,74,20,25,14,17,13,18,15,38,12,27,39,37,27,23,16,31,11,20,14,15,11,17,-30,44,51,44,37,59,0,0,-155,-142,-384,-384,-483,-493,-480,-478,-504,-499,-508,-499,-491,-302,-495,-486,-445,-420,-401,-257,-254,-255,-255,-237,-401,-401,-384,-379,-721,-721,-696,-675,-1622,-713,-702,-659]} 1. d4 {[%emt 0:00:44]} d5 {[%emt 0:00:09]} 2. c4 {[%emt 0:00:11]} c6 {[%emt 0:00:08]} 3. Nf3 {[%emt 0:00:19]} Nf6 {[%emt 0:00:07]} 4. e3 {[%emt 0:00:14]} Bf5 {[%emt 0:00:19]} 5. Bd3 {[%emt 0:02:09]} Bg6 {[%emt 0:00:48]} 6. Qc2 {[%emt 0:01:28] D12: Slav Defence: 3 Nf3 Nf6 4 e3 Bf5.} e6 {[%emt 0:00:59]} 7. Nbd2 {[%emt 0:00:14]} Nbd7 {[%emt 0:01:04]} 8. O-O {[%emt 0:00:33] The position is equal.} Be7 {[%emt 0:01:08]} 9. b3 {[%emt 0:00:47]} O-O {[%emt 0:01:28]} 10. Bxg6 {[%emt 0:00:15]} hxg6 {[%emt 0:00:04] [#]} 11. Qd3 $146 {[%emt 0:20:35]} ({Predecessor:} 11. Bb2 a5 12. a4 Nb8 13. Qd3 Na6 14. Qe2 Nb4 15. Rad1 Nd7 16. e4 Qc7 17. Rfe1 Rfe8 18. g3 Rad8 19. Kg2 b6 {0-1 (19) Dominguez Ortega,L-Garcia Cedeno,C (2071) ICCF email 2018}) 11... Rc8 {[%emt 0:02:04]} 12. Bb2 {[%emt 0:00:42]} c5 {[%emt 0:02:35]} 13. Rfd1 {[%emt 0:04:53]} Qb6 {[%emt 0:02:23]} 14. cxd5 {[%emt 0:03:25]} exd5 {[%emt 0:00:32][%cal Oc5c4]} 15. dxc5 {[%emt 0:01:28]} Nxc5 {[%emt 0:00:04]} 16. Qd4 {[%emt 0:01:46]} (16. Qe2 $142) 16... Nce4 {[%emt 0:04:00]} (16... Qa6 $11) 17. Qxb6 $14 {[%emt 0:12:34]} axb6 {[%emt 0:00:04]} 18. Nd4 {[%emt 0:00:46] Against Rc2} Bb4 {[%emt 0:04:26]} 19. Nb1 {[%emt 0:07:39]} (19. N2f3 $14) 19... Ng4 $11 {[%emt 0:06:43]} 20. f3 {[%emt 0:06:07]} (20. Rf1 $11) 20... Nxe3 $17 {[%emt 0:00:28] Black has more active pieces. The white rooks are badly placed.} 21. Rd3 {[%emt 0:00:14] White does not recover from this.} (21. Rc1 $17 {only move.} Bc5 22. Na3 (22. fxe4 $2 Bxd4 23. Rxc8 Bxb2 $19)) 21... Nc2 $19 {[%emt 0:00:26]} 22. Nxc2 {[%emt 0:01:32]} Rxc2 {[%emt 0:00:06]} 23. fxe4 {[%emt 0:06:41]} dxe4 {[%emt 0:00:22]} (23... Rxb2 $2 24. Nc3 $19) 24. Rd4 {[%emt 0:00:36]} Bc5 {[%emt 0:00:06]} ({Worse is} 24... Rxb2 25. Rxb4 Rd8 26. Nc3 $11) 25. b4 {[%emt 0:00:06]} Bxd4+ {[%emt 0:01:56]} (25... Rxb2 26. bxc5 bxc5 27. Rxe4 $14) 26. Bxd4 {[%emt 0:00:11]} Rc1+ {[%emt 0:00:12]} 27. Kf2 {[%emt 0:00:09]} Rd8 {[%emt 0:00:09]} 28. Ke3 {[%emt 0:02:46]} Re1+ {[%emt 0:00:32]} 29. Kf2 {[%emt 0:00:06]} Rxb1 {[%emt 0:00:03]} ({Weaker is} 29... Rxd4 30. Kxe1 Rxb4 31. Nc3 $16) 30. Rxb1 {[%emt 0:00:05] [#] Black must now prevent Ke3.} Rxd4 {[%emt 0:00:03][%mdl 4096] Endgame KR-KR} 31. Ke3 {[%emt 0:00:10]} Rc4 {[%emt 0:00:04]} 32. a3 $2 {[%emt 0:06:54]} (32. Kf4 {was worth a try.}) 32... f5 {[%emt 0:00:05][%cal Bf7f5,Bf5f4][%mdl 32]} 33. Rd1 {[%emt 0:01:00]} g5 {[%emt 0:00:32][%cal Bg6g5,Bg5g4][%mdl 32] ...f4+ is the strong threat.} ({Avoid the trap} 33... Rc3+ $2 34. Ke2 $19) 34. Rd6 $2 {[%emt 0:01:01]} (34. g3 Rc3+ 35. Kd4 Rxa3 36. g4) 34... f4+ {[%emt 0:01:41] Black is clearly winning.} 35. Kd2 {[%emt 0:00:29]} g4 {[%emt 0:01:07] And now ...e3+ would win.} 36. Rxb6 {[%emt 0:00:20]} Rd4+ {[%emt 0:00:13]} (36... e3+ $142 37. Kd3 {[#]} Re4 $3 {[%mdl 512]}) 37. Ke1 {[%emt 0:00:25]} e3 {[%emt 0:00:56] Weighted Error Value: White=0.53/Black=0.32} 0-1